fUSD/lending_fUSD_20240318
["ID","MTS","AMOUNT","RATE_DAILY","PERIOD"]
[319471804,1710799862935,-500.0,0.00022191,2]
[319471805,1710799862943,-500.0,0.00022191,2]
[319471806,1710799862952,-500.0,0.00022191,2]
[319471807,1710799862961,-4941.23,0.00022191,2]
[319471808,1710799862971,-500.0,0.00022191,2]
[319471809,1710799862980,-924.55,0.00022191,2]
[319471810,1710799862989,-1862.07,0.00022191,2]
[319471811,1710799862998,-646.58,0.00022191,2]
[319471812,1710799863007,-1444.11,0.00022191,2]
[319471813,1710799863017,-500.0,0.00022191,2]
[319471814,1710799863026,-2596.77,0.00022191,2]
[319471815,1710799863035,-1913.61,0.00022191,2]
[319471816,1710799863044,-600.66,0.00022191,2]
[319471817,1710799863053,-1169.17,0.00022191,2]
[319471818,1710799863062,-501.0,0.00022191,2]
[319471819,1710799863071,-500.0,0.00022191,2]
[319471820,1710799863080,-500.0,0.00022191,2]
[319471821,1710799863090,-671.74,0.00022191,2]
[319471822,1710799863101,-500.0,0.00022191,2]
[319471823,1710799863111,-660.79,0.00022191,2]
[319471824,1710799863120,-500.0,0.00022191,2]
[319471825,1710799863130,-500.0,0.00022191,2]
[319471826,1710799863140,-500.0,0.00022191,2]
[319471827,1710799863150,-4429.56,0.00022191,2]
[319471828,1710799863160,-500.0,0.00022191,2]
[319471829,1710799863170,-500.0,0.00022191,2]
[319471830,1710799863180,-1387.34,0.00022191,2]
[319471831,1710799863190,-645.13,0.00022191,2]
[319471832,1710799863200,-500.0,0.00022191,2]
[319471833,1710799863210,-500.0,0.00022191,2]
[319471834,1710799863220,-1092.65,0.00022191,2]
[319471835,1710799863230,-500.0,0.00022191,2]
[319471836,1710799863240,-775.21,0.00022191,2]
[319471837,1710799863250,-1234.18,0.00022191,2]
[319471838,1710799863259,-660.8,0.00022191,2]
[319471839,1710799863268,-1640.92,0.00022191,2]
[319471840,1710799863278,-520.66,0.00022191,2]
[319471841,1710799863287,-500.0,0.00022191,2]
[319471842,1710799863297,-618.02,0.00022191,2]
[319471843,1710799863307,-500.0,0.00022191,2]
[319471844,1710799863316,-500.0,0.00022191,2]
[319471845,1710799863326,-500.0,0.00022191,2]
[319471846,1710799863335,-2991.4,0.00022191,2]
[319471847,1710799863344,-526.67,0.00022191,2]
[319471848,1710799863357,-549.11994108,0.00022191,2]
[319471849,1710799863366,-500.0,0.00022191,2]
[319471850,1710799863376,-3432.69,0.00022191,2]
[319471851,1710799863385,-929.21,0.00022191,2]
[319471852,1710799863395,-500.0,0.00022191,2]
[319471853,1710799863404,-469.41180366,0.00022191,2]
[319471854,1710799863413,-2512.6,0.00022191,2]
[319471855,1710799863423,-553.17,0.00022191,2]
[319471856,1710799863432,-632.91,0.00022191,2]
[319471857,1710799863441,-500.0,0.00022191,2]
[319471858,1710799863450,-587.03,0.00022191,2]
[319471859,1710799863460,-500.0,0.00022191,2]
[319471860,1710799863470,-500.0,0.00022191,2]
[319471861,1710799863479,-500.0,0.00022191,2]
[319471862,1710799863488,-500.0,0.00022191,2]
[319471863,1710799863497,-1670.28,0.00022191,2]
[319471864,1710799863507,-588.94,0.00022191,2]
[319471865,1710799863516,-778.13,0.00022191,2]
[319471866,1710799863526,-1508.72,0.00022191,2]
[319471867,1710799863535,-500.0,0.00022191,2]
[319471868,1710799863544,-573.13539679,0.00022191,2]
[319471869,1710799863554,-992.88,0.00022191,2]
[319471870,1710799863565,-1421.34,0.00022191,2]
[319471871,1710799863577,-2672.81,0.00022191,2]
[319471872,1710799863586,-1479.34,0.00022191,2]
[319471873,1710799863596,-500.0,0.00022191,2]
[319471874,1710799863611,-1591.7,0.00022191,2]
[319471875,1710799863620,-549.69,0.00022191,2]
[319471876,1710799863630,-500.0,0.00022191,2]
[319471877,1710799863639,-500.0,0.00022191,2]
[319471878,1710799863650,-1096.72,0.00022191,2]
[319471879,1710799863659,-500.0,0.00022191,2]
[319471880,1710799863668,-500.0,0.00022191,2]
[319471881,1710799863678,-500.0,0.00022191,2]
[319471882,1710799863687,-500.0,0.00022191,2]
[319471883,1710799863697,-2210.21,0.00022191,2]
[319471884,1710799863707,-1855.24,0.00022191,2]
[319471885,1710799863716,-869.7,0.00022191,2]
[319471886,1710799863725,-500.0,0.00022191,2]
[319471887,1710799863735,-1181.58,0.00022191,2]
[319471888,1710799863744,-1747.53,0.00022191,2]
[319471889,1710799863754,-417.585999,0.00022191,7]
[319471890,1710799863764,-680.92,0.00022191,2]
[319471891,1710799863773,-500.0,0.00022191,2]
[319471892,1710799863782,-665.42,0.00022191,2]
[319471893,1710799863791,-500.0,0.00022191,2]
[319471894,1710799863800,-500.0,0.00022191,2]
[319471895,1710799863810,-417.585999,0.00022191,7]
[319471896,1710799863819,-1501.92,0.00022191,2]
[319471897,1710799863828,-2323.42,0.00022191,2]
[319471898,1710799863838,-2355.45,0.00022191,2]
[319471899,1710799863847,-2348.13,0.00022191,2]
[319471900,1710799863858,-500.0,0.00022191,2]
[319471901,1710799863867,-1841.43,0.00022191,2]
[319471902,1710799863876,-500.0,0.00022191,2]
[319471903,1710799863886,-633.95,0.00022191,2]
[319471904,1710799863895,-2789.32,0.00022191,2]
[319471905,1710799863904,-1047.26,0.00022191,2]
[319471906,1710799863913,-500.0,0.00022191,2]
[319471907,1710799863922,-500.0,0.00022191,2]
[319471908,1710799863931,-500.0,0.00022191,2]
[319471909,1710799863940,-506.7,0.00022191,2]
[319471910,1710799863950,-500.0,0.00022191,2]
[319471911,1710799863960,-2028.96,0.00022191,2]
[319471912,1710799864038,-499.012743,0.00022191,7]
[319471913,1710799864048,-727.29,0.00022191,2]
[319471914,1710799864057,-1121.74,0.00022191,2]
[319471915,1710799864067,-500.0,0.00022191,2]
[319471916,1710799864077,-500.0,0.00022191,2]
[319471917,1710799864086,-500.0,0.00022191,2]
[319471918,1710799864094,-499.012743,0.00022191,7]
[319471919,1710799864105,-151.0,0.00022191,7]
[319471920,1710799864114,-151.0,0.00022191,7]
[319471921,1710799864123,-1964.52,0.00022191,2]
[319471922,1710799864132,-500.0,0.00022191,2]
[319471923,1710799864142,-800.57,0.00022191,2]
[319471924,1710799864151,-855.83,0.00022191,2]
[319471925,1710799864160,-500.0,0.00022191,2]
[319471926,1710799864169,-500.0,0.00022191,2]
[319471927,1710799864178,-500.0,0.00022191,2]
[319471928,1710799864187,-151.0,0.00022191,7]
[319471929,1710799864196,-515.18,0.00022191,2]
[319471930,1710799864205,-293.23117735,0.00022191,2]
[319471931,1710799864214,-1465.25,0.00022191,2]
[319471932,1710799864224,-805.44,0.00022191,2]
[319471933,1710799864233,-500.0,0.00022191,2]
[319471934,1710799864243,-500.0,0.00022191,2]
[319471935,1710799864252,-703.59,0.00022191,2]
[319471936,1710799864261,-1137.55,0.00022191,2]
[319471937,1710799864270,-1372.51,0.00022191,2]
[319471938,1710799864280,-500.0,0.00022191,2]
[319471939,1710799864289,-1311.42,0.00022191,2]
[319471940,1710799864299,-693.23,0.00022191,2]
[319471941,1710799864308,-511.91223843,0.00022191,2]
[319471942,1710799864317,-890.31,0.00022191,2]
[319471943,1710799864327,-606.63,0.00022191,2]
[319471944,1710799864336,-1355.8,0.00022191,2]
[319471945,1710799864345,-500.0,0.00022191,2]
[319471946,1710799864358,-633.23,0.00022191,2]
[319471947,1710799864368,-500.0,0.00022191,2]
[319471948,1710799864378,-931.19,0.00022191,2]
[319471949,1710799864387,-1311.22,0.00022191,2]
[319471950,1710799864397,-500.0,0.00022191,2]
[319471951,1710799864407,-931.2,0.00022191,2]
[319471952,1710799864416,-500.0,0.00022191,2]
[319471953,1710799864426,-500.0,0.00022191,2]
[319471954,1710799864436,-560.88,0.00022191,2]
[319471955,1710799864446,-500.0,0.00022191,2]
[319471956,1710799864456,-578.22,0.00022191,2]
[319471957,1710799864466,-500.0,0.00022191,2]
[319471958,1710799864475,-1373.23,0.00022191,2]
[319471959,1710799864484,-500.0,0.00022191,2]
[319471960,1710799864494,-500.0,0.00022191,2]
[319471961,1710799864504,-1189.08,0.00022191,2]
[319471962,1710799864514,-582.88,0.00022191,2]
[319471963,1710799864523,-500.0,0.00022191,2]
[319471964,1710799864534,-807.67,0.00022191,2]
[319471965,1710799864543,-500.0,0.00022191,2]
[319471966,1710799864553,-500.0,0.00022191,2]
[319471967,1710799864563,-500.0,0.00022191,2]
[319471968,1710799864577,-500.0,0.00022191,2]
[319471969,1710799864587,-500.0,0.00022191,2]
[319471970,1710799864597,-1318.07,0.00022191,2]
[319471971,1710799864610,-667.48,0.00022191,2]
[319471972,1710799864619,-2537.59,0.00022191,2]
[319471973,1710799864629,-1833.13,0.00022191,2]
[319471974,1710799864639,-500.0,0.00022191,2]
[319471975,1710799864650,-500.0,0.00022191,2]
[319471976,1710799864660,-584.63,0.00022191,2]
[319471977,1710799864670,-922.71,0.00022191,2]
[319471978,1710799864679,-522.08,0.00022191,2]
[319471979,1710799864689,-1186.68,0.00022191,2]
[319471980,1710799864698,-500.0,0.00022191,2]
[319471981,1710799864708,-500.0,0.00022191,2]
[319471982,1710799864717,-500.0,0.00022191,2]
[319471983,1710799864727,-500.0,0.00022191,2]
[319471984,1710799864736,-797.09,0.00022191,2]
[319471985,1710799864746,-1847.99,0.00022191,2]
[319471986,1710799864755,-998.55,0.00022191,2]
[319471987,1710799864764,-172.732054,0.00022191,7]
[319471988,1710799864775,-500.0,0.00022191,2]
[319471989,1710799864785,-500.0,0.00022191,2]
[319471990,1710799864795,-500.0,0.00022191,2]
[319471991,1710799864804,-172.732054,0.00022191,7]
[319471992,1710799864814,-500.0,0.00022191,2]
[319471993,1710799864824,-500.0,0.00022191,2]
[319471994,1710799864833,-1856.02,0.00022191,2]
[319471995,1710799864842,-1079.26,0.00022191,2]
[319471996,1710799864853,-1418.3,0.00022191,2]
[319471997,1710799864862,-1186.25,0.00022191,2]
[319471998,1710799864871,-897.94,0.00022191,2]
[319471999,1710799864880,-844.5,0.00022191,2]
[319472000,1710799864889,-500.0,0.00022191,2]
[319472001,1710799864898,-1228.33,0.00022191,2]
[319472002,1710799864907,-500.0,0.00022191,2]
[319472003,1710799864916,-656.86,0.00022191,2]
[319472004,1710799864925,-151.0,0.00022191,7]
[319472005,1710799864934,-1254.05,0.00022191,2]
[319472006,1710799864943,-151.0,0.00022191,7]
[319472007,1710799864952,-1220.28,0.00022191,2]
[319472008,1710799864961,-500.0,0.00022191,2]
[319472009,1710799864969,-524.26,0.00022191,2]
[319472010,1710799864978,-544.86,0.00022191,2]
[319472011,1710799864988,-1112.38,0.00022191,2]
[319472012,1710799864997,-1554.62,0.00022191,2]
[319472013,1710799865006,-484.3993969,0.00022191,2]
[319472014,1710799865016,-500.0,0.00022191,2]
[319472015,1710799865025,-1046.24,0.00022191,2]
[319472016,1710799865035,-990.25,0.00022191,2]
[319472017,1710799865045,-500.0,0.00022191,2]
[319472018,1710799865055,-500.0,0.00022191,2]
[319472019,1710799865066,-525.88,0.00022191,2]
[319472020,1710799865076,-615.98,0.00022191,2]
[319472021,1710799865085,-1017.43,0.00022191,2]
[319472022,1710799865096,-500.0,0.00022191,2]
[319472023,1710799865107,-179.33161906,0.00022191,2]
[319472024,1710799865118,-500.0,0.00022191,2]
[319472025,1710799865128,-500.0,0.00022191,2]
[319472026,1710799865138,-500.0,0.00022191,2]
[319472027,1710799865148,-1155.33,0.00022191,2]
[319472028,1710799865158,-500.0,0.00022191,2]
[319472029,1710799865169,-3244.32,0.00022191,2]
[319472030,1710799865179,-527.83,0.00022191,2]
[319472031,1710799865189,-1754.86,0.00022191,2]
[319472032,1710799865199,-500.0,0.00022191,2]
[319472033,1710799865210,-1859.5,0.00022191,2]
[319472034,1710799865221,-500.0,0.00022191,2]
[319472035,1710799865231,-500.0,0.00022191,2]
[319472036,1710799865242,-1204.75,0.00022191,2]
[319472037,1710799865252,-721.17,0.00022191,2]
[319472038,1710799865263,-500.0,0.00022191,2]
[319472039,1710799865273,-1304.47,0.00022191,2]
[319472040,1710799865284,-518.04140364,0.00022191,2]
[319472041,1710799865294,-1387.32,0.00022191,2]
[319472042,1710799865304,-1084.75,0.00022191,2]
[319472043,1710799865313,-984.35,0.00022191,2]
[319472044,1710799865323,-500.0,0.00022191,2]
[319472045,1710799865333,-500.0,0.00022191,2]
[319472046,1710799865344,-500.0,0.00022191,2]
[319472047,1710799865356,-500.0,0.00022191,2]
[319472048,1710799865365,-500.0,0.00022191,2]
[319472049,1710799865376,-500.0,0.00022191,2]
[319472050,1710799865386,-1042.11,0.00022191,2]
[319472051,1710799865397,-550.03,0.00022191,2]
[319472052,1710799865408,-500.0,0.00022191,2]
[319472053,1710799865418,-500.0,0.00022191,2]
[319472054,1710799865428,-500.0,0.00022191,2]
[319472055,1710799865439,-1980.05,0.00022191,2]
[319472056,1710799865450,-3263.23,0.00022191,2]
[319472057,1710799865461,-1006.81,0.00022191,2]
[319472058,1710799865471,-1334.24,0.00022191,2]
[319472059,1710799865482,-500.0,0.00022191,2]
[319472060,1710799865492,-500.0,0.00022191,2]
[319472061,1710799865502,-500.0,0.00022191,2]
[319472062,1710799865513,-879.01,0.00022191,2]
[319472063,1710799865523,-577.06,0.00022191,2]
[319472064,1710799865533,-772.45,0.00022191,2]
[319472065,1710799865544,-1289.15,0.00022191,2]
[319472066,1710799865555,-500.0,0.00022191,2]
[319472067,1710799865566,-500.0,0.00022191,2]
[319472068,1710799865578,-500.0,0.00022191,2]
[319472069,1710799865589,-1162.86,0.00022191,2]
[319472070,1710799865600,-500.0,0.00022191,2]
[319472071,1710799865613,-539.59,0.00022191,2]
[319472072,1710799865623,-500.0,0.00022191,2]
[319472073,1710799865634,-1284.59,0.00022191,2]
[319472074,1710799865646,-1343.86,0.00022191,2]
[319472075,1710799865657,-2423.47,0.00022191,2]
[319472076,1710799865667,-500.0,0.00022191,2]
[319472077,1710799865678,-790.0,0.00022191,2]
[319472078,1710799865688,-519.97889752,0.00022191,2]
[319472079,1710799865698,-2345.93,0.00022191,2]
[319472080,1710799865708,-1561.78,0.00022191,2]
[319472081,1710799865718,-1543.03,0.00022191,2]
[319472082,1710799865728,-500.0,0.00022191,2]
[319472083,1710799865738,-500.0,0.00022191,2]
[319472084,1710799865748,-688.89,0.00022191,2]
[319472085,1710799865758,-500.0,0.00022191,2]
[319472086,1710799865768,-500.0,0.00022191,2]
[319472087,1710799865778,-1604.71,0.00022191,2]
[319472088,1710799865788,-500.0,0.00022191,2]
[319472089,1710799865798,-500.0,0.00022191,2]
[319472090,1710799865808,-779.42,0.00022191,2]
[319472091,1710799865818,-167.27986868,0.00022191,2]
[319472092,1710799865828,-500.0,0.00022191,2]
[319472093,1710799865838,-500.0,0.00022191,2]
[319472094,1710799865848,-500.0,0.00022191,2]
[319472095,1710799865859,-1455.91,0.00022191,2]
[319472096,1710799865869,-964.51,0.00022191,2]
[319472097,1710799865878,-500.0,0.00022191,2]
[319472098,1710799865888,-865.84,0.00022191,2]
[319472099,1710799865898,-500.0,0.00022191,2]
[319472100,1710799865908,-151.0,0.00022191,7]
[319472101,1710799865918,-500.0,0.00022191,2]
[319472102,1710799865927,-500.0,0.00022191,2]
[319472103,1710799865937,-1883.82,0.00022191,2]
[319472104,1710799865947,-1347.47,0.00022191,2]
[319472105,1710799865957,-500.0,0.00022191,2]
[319472106,1710799865967,-500.0,0.00022191,2]
[319472107,1710799865976,-615.15,0.00022191,2]
[319472108,1710799865986,-500.0,0.00022191,2]
[319472109,1710799865996,-500.0,0.00022191,2]
[319472110,1710799866006,-500.0,0.00022191,2]
[319472111,1710799866016,-743.05,0.00022191,2]
[319472112,1710799866027,-500.0,0.00022191,2]
[319472113,1710799866037,-1288.43,0.00022191,2]
[319472114,1710799866048,-1050.86,0.00022191,2]
[319472115,1710799866058,-532.05,0.00022191,2]
[319472116,1710799866068,-568.35,0.00022191,2]
[319472117,1710799866079,-500.0,0.00022191,2]
[319472118,1710799866089,-500.0,0.00022191,2]
[319472119,1710799866099,-500.0,0.00022191,2]
[319472120,1710799866109,-500.0,0.00022191,2]
[319472121,1710799866119,-500.0,0.00022191,2]
[319472122,1710799866129,-500.0,0.00022191,2]
[319472123,1710799866139,-500.0,0.00022191,2]
[319472124,1710799866149,-801.95,0.00022191,2]
[319472125,1710799866159,-500.0,0.00022191,2]
[319472126,1710799866169,-3692.13,0.00022191,2]
[319472127,1710799866179,-1387.79,0.00022191,2]
[319472128,1710799866189,-500.0,0.00022191,2]
[319472129,1710799866199,-1021.88,0.00022191,2]
[319472130,1710799866210,-500.0,0.00022191,2]
[319472131,1710799866220,-1736.34,0.00022191,2]
[319472132,1710799866230,-500.0,0.00022191,2]
[319472133,1710799866241,-500.0,0.00022191,2]
[319472134,1710799866251,-2682.4,0.00022191,2]
[319472135,1710799866262,-722.05,0.00022191,2]
[319472136,1710799866273,-548.04011978,0.00022191,2]
[319472137,1710799866285,-500.0,0.00022191,2]
[319472138,1710799866297,-917.72,0.00022191,2]
[319472139,1710799866307,-500.0,0.00022191,2]
[319472140,1710799866318,-501.33449198,0.00022191,2]
[319472141,1710799866330,-500.0,0.00022191,2]
[319472142,1710799866341,-1582.16,0.00022191,2]
[319472143,1710799866352,-500.0,0.00022191,2]
[319472144,1710799866367,-500.0,0.00022191,2]
[319472145,1710799866377,-500.0,0.00022191,2]
[319472146,1710799866387,-500.0,0.00022191,2]
[319472147,1710799866397,-500.0,0.00022191,2]
[319472148,1710799866407,-500.0,0.00022191,2]
[319472149,1710799866416,-500.0,0.00022191,2]
[319472150,1710799866426,-500.0,0.00022191,2]
[319472151,1710799866436,-500.0,0.00022191,2]
[319472152,1710799866447,-500.0,0.00022191,2]
[319472153,1710799866457,-500.0,0.00022191,2]
[319472154,1710799866467,-500.0,0.00022191,2]
[319472155,1710799866477,-899.67,0.00022191,2]
[319472156,1710799866487,-500.0,0.00022191,2]
[319472157,1710799866497,-500.0,0.00022191,2]
[319472158,1710799866506,-1197.99,0.00022191,2]
[319472159,1710799866516,-2570.57,0.00022191,2]
[319472160,1710799866526,-832.49,0.00022191,2]
[319472161,1710799866536,-500.0,0.00022191,2]
[319472162,1710799866546,-500.0,0.00022191,2]
[319472163,1710799866556,-500.0,0.00022191,2]
[319472164,1710799866567,-500.0,0.00022191,2]
[319472165,1710799866579,-500.0,0.00022191,2]
[319472166,1710799866589,-2336.68,0.00022191,2]
[319472167,1710799866599,-714.57,0.00022191,2]
[319472168,1710799866611,-500.0,0.00022191,2]
[319472169,1710799866619,-500.0,0.00022191,2]
[319472170,1710799866629,-570.84,0.00022191,2]
[319472171,1710799866639,-572.14,0.00022191,2]
[319472172,1710799866651,-500.0,0.00022191,2]
[319472173,1710799866661,-1267.22,0.00022191,2]
[319472174,1710799866671,-500.0,0.00022191,2]
[319472175,1710799866680,-713.53,0.00022191,2]
[319472176,1710799866690,-1986.27,0.00022191,2]
[319472177,1710799866700,-500.0,0.00022191,2]
[319472178,1710799866709,-500.0,0.00022191,2]
[319472179,1710799866719,-500.0,0.00022191,2]
[319472180,1710799866729,-1031.5,0.00022191,2]
[319472181,1710799866739,-500.0,0.00022191,2]
[319472182,1710799866749,-500.0,0.00022191,2]
[319472183,1710799866759,-500.0,0.00022191,2]
[319472184,1710799866769,-500.0,0.00022191,2]
[319472185,1710799866778,-500.0,0.00022191,2]
[319472186,1710799866788,-1487.73,0.00022191,2]
[319472187,1710799866797,-151.0,0.00022191,7]
[319472188,1710799866807,-500.0,0.00022191,2]
[319472189,1710799866816,-1462.06,0.00022191,2]
[319472190,1710799866826,-500.0,0.00022191,2]
[319472191,1710799866835,-500.0,0.00022191,2]
[319472192,1710799866845,-2831.64,0.00022191,2]
[319472193,1710799866857,-500.0,0.00022191,2]
[319472194,1710799866866,-500.0,0.00022191,2]
[319472195,1710799866876,-1113.91,0.00022191,2]
[319472196,1710799866885,-662.67,0.00022191,2]
[319472197,1710799866895,-1374.98,0.00022191,2]
[319472198,1710799866904,-500.0,0.00022191,2]
[319472199,1710799866914,-2453.88,0.00022191,2]
[319472200,1710799866923,-584.72,0.00022191,2]
[319472201,1710799866934,-500.0,0.00022191,2]
[319472202,1710799866944,-500.0,0.00022191,2]
[319472203,1710799866954,-1349.99,0.00022191,2]
[319472204,1710799866964,-1580.15,0.00022191,2]
[319472205,1710799866974,-500.0,0.00022191,2]
[319472206,1710799866984,-1466.21,0.00022191,2]
[319472207,1710799866994,-500.0,0.00022191,2]
[319472208,1710799867004,-500.64992553,0.00022191,2]
[319472209,1710799867014,-1118.72,0.00022191,2]
[319472210,1710799867024,-500.0,0.00022191,2]
[319472211,1710799867034,-586.87676608,0.00022191,2]
[319472212,1710799867043,-500.0,0.00022191,2]
[319472213,1710799867053,-606.91,0.00022191,2]
[319472214,1710799867062,-1958.41,0.00022191,2]
[319472215,1710799867072,-2000.0,0.00022191,2]
[319472216,1710799867082,-502.1646347,0.00022191,2]
[319472217,1710799867091,-605.4,0.00022191,2]
[319472218,1710799867101,-500.0,0.00022191,2]
[319472219,1710799867112,-500.0,0.00022191,2]
[319472220,1710799867121,-500.0,0.00022191,2]
[319472221,1710799867131,-500.0,0.00022191,2]
[319472222,1710799867140,-500.0,0.00022191,2]
[319472223,1710799867150,-942.42,0.00022191,2]
[319472224,1710799867159,-500.0,0.00022191,2]
[319472225,1710799867169,-569.15,0.00022191,2]
[319472226,1710799867178,-941.12,0.00022191,2]
[319472227,1710799867188,-500.0,0.00022191,2]
[319472228,1710799867197,-1400.41,0.00022191,2]
[319472229,1710799867206,-500.0,0.00022191,2]
[319472230,1710799867216,-500.0,0.00022191,2]
[319472231,1710799867226,-500.0,0.00022191,2]
[319472232,1710799867236,-500.0,0.00022191,2]
[319472233,1710799867245,-1781.44,0.00022191,2]
[319472234,1710799867254,-151.0,0.00022191,7]
[319472235,1710799867264,-500.0,0.00022191,2]
[319472236,1710799867273,-500.0,0.00022191,2]
[319472237,1710799867283,-1912.95,0.00022191,2]
[319472238,1710799867292,-713.68,0.00022191,2]
[319472239,1710799867302,-151.0,0.00022191,7]
[319472240,1710799867311,-1203.57,0.00022191,2]
[319472241,1710799867321,-905.72,0.00022191,2]
[319472242,1710799867331,-500.0,0.00022191,2]
[319472243,1710799867341,-500.0,0.00022191,2]
[319472244,1710799867350,-4393.41,0.00022191,2]
[319472245,1710799867362,-2303.75,0.00022191,2]
[319472246,1710799867372,-500.0,0.00022191,2]
[319472247,1710799867382,-1401.22,0.00022191,2]
[319472248,1710799867391,-1144.14,0.00022191,2]
[319472249,1710799867401,-511.29,0.00022191,2]
[319472250,1710799867411,-1229.49,0.00022191,2]
[319472251,1710799867594,-500.0,0.00022191,2]
[319472252,1710799867615,-1432.28,0.00022191,2]
[319472253,1710799867629,-500.0,0.00022191,2]
[319472254,1710799867639,-500.0,0.00022191,2]
[319472255,1710799867650,-500.0,0.00022191,2]
[319472256,1710799867659,-516.82,0.00022191,2]
[319472257,1710799867668,-500.0,0.00022191,2]
[319472258,1710799867677,-500.0,0.00022191,2]
[319472259,1710799867686,-500.0,0.00022191,2]
[319472260,1710799867694,-1305.33,0.00022191,2]
[319472261,1710799867703,-581.47,0.00022191,2]
[319472262,1710799867712,-678.53,0.00022191,2]
[319472263,1710799867722,-737.52,0.00022191,2]
[319472264,1710799867731,-1022.21,0.00022191,2]
[319472265,1710799867740,-500.0,0.00022191,2]
[319472266,1710799867749,-500.0,0.00022191,2]
[319472267,1710799867759,-1654.91,0.00022191,2]
[319472268,1710799867768,-500.0,0.00022191,2]
[319472269,1710799867778,-302.990116,0.00022191,7]
[319472270,1710799867787,-151.0,0.00022191,7]
[319472271,1710799867796,-150.0,0.00022191,2]
[319472272,1710799867805,-500.0,0.00022191,2]
[319472273,1710799867814,-302.990116,0.00022191,7]
[319472274,1710799867823,-745.31,0.00022191,2]
[319472275,1710799867833,-500.0,0.00022191,2]
[319472276,1710799867842,-500.0,0.00022191,2]
[319472277,1710799867851,-7202.93,0.00022191,2]
[319472278,1710799867861,-20689.66,0.00022191,2]
[319472279,1710799867871,-2992.02,0.00022191,2]
[319472280,1710799867881,-500.0,0.00022191,2]
[319472281,1710799867890,-1157.8,0.00022191,2]
[319472282,1710799867899,-638.22,0.00022191,2]
[319472283,1710799867908,-500.0,0.00022191,2]
[319472284,1710799867917,-1110.24,0.00022191,2]
[319472285,1710799867926,-1088.66,0.00022191,2]
[319472286,1710799867935,-1090.38,0.00022191,2]
[319472287,1710799867945,-313.15245524,0.00022191,2]
[319472288,1710799867954,-500.0,0.00022191,2]
[319472289,1710799867964,-1367.92,0.00022191,2]
[319472290,1710799867973,-500.0,0.00022191,2]
[319472291,1710799867981,-8212.3,0.00022191,2]
[319472292,1710799867990,-500.0,0.00022191,2]
[319472293,1710799867999,-6843.13,0.00022191,2]
[319472294,1710799868008,-1716.46,0.00022191,2]
[319472295,1710799868017,-640.557938,0.00022191,7]
[319472296,1710799868026,-500.0,0.00022191,2]
[319472297,1710799868035,-1412.21,0.00022191,2]
[319472298,1710799868044,-500.0,0.00022191,2]
[319472299,1710799868053,-500.0,0.00022191,2]
[319472300,1710799868062,-622.92,0.00022191,2]
[319472301,1710799868071,-500.0,0.00022191,2]
[319472302,1710799868081,-605.07,0.00022191,2]
[319472303,1710799868090,-640.557938,0.00022191,7]